bitfinex-derivatives/quotes_ETHF0:USTF0_20250323
["timestamp","ask_amount","ask_price","bid_price","bid_amount"]
[1742729352303,5.29346313,2019.3,2019.0,1.2665]
[1742729352493,5.3588,2019.2,2019.0,1.2665]
[1742729352797,1.3531,2019.1,2019.0,1.2665]
[1742729353193,1.3531,2019.1,2018.8,0.00743587]
[1742729353403,4.0348,2019.0,2018.8,0.00743587]
[1742729353600,1.3531,2018.9,2018.8,0.00743587]
[1742729356694,3.8531,2018.9,2018.5,3.2078]
[1742729356893,4.0406,2018.8,2018.2,2.664]
[1742729357096,1.3665,2018.7,2018.3,1.2768]
[1742729357304,3.346,2018.6,2018.3,1.2768]
[1742729357601,1.3665,2018.5,2018.3,1.2768]
[1742729357902,3.346,2018.4,2018.3,1.2768]
[1742729359902,3.349,2018.5,2018.3,1.2768]
[1742729362002,1.3961,2018.6,2018.3,1.2768]
[1742729362305,3.354,2018.5,2018.3,1.2768]
[1742729363405,3.354,2018.5,2018.4,3.2078]
[1742729363701,3.351,2018.5,2018.4,3.2078]
[1742729364505,1.3961,2018.6,2018.3,1.2768]
[1742729364701,3.35,2018.5,2018.3,1.2768]
[1742729364905,1.2891,2018.4,2018.3,1.2768]
[1742729365105,3.35,2018.5,2018.3,1.2768]
[1742729366100,1.2891,2018.4,2018.3,1.2768]
[1742729366701,3.35,2018.5,2018.3,1.2768]
[1742729366899,3.35,2018.5,2018.4,3.2078]
[1742729370907,3.346,2018.5,2018.4,3.2078]
[1742729372200,1.2963,2018.5,2018.4,3.2078]
[1742729372404,4.6383,2018.5,2018.4,3.2078]
[1742729375313,4.6383,2018.5,2018.3,4.4846]
[1742729375798,4.6383,2018.5,2018.4,1.3776]
[1742729378012,4.6293,2018.5,2018.4,1.3776]
[1742729387506,0.00743587,2018.7,2018.4,1.3776]
[1742729387706,3.323,2018.6,2018.5,4.4937]
[1742729388119,3.33043587,2018.7,2018.5,4.4937]
[1742729388323,4.62663587,2018.7,2018.6,1.335]
[1742729390217,0.00743587,2018.7,2018.6,1.335]
[1742729390617,1.36023587,2018.7,2018.6,1.335]
[1742729392327,0.00743587,2018.7,2018.6,1.335]
[1742729393015,1.40843587,2018.7,2018.6,1.335]
[1742729394316,0.00743587,2018.7,2018.6,1.335]
[1742729396516,1.32443587,2018.7,2018.6,1.335]
[1742729400129,4.62443587,2018.7,2018.6,1.335]
[1742729400533,4.62443587,2018.7,2018.5,3.2078]
[1742729400731,1.3924,2018.6,2018.5,3.2078]
[1742729403634,2.7117,2018.6,2018.5,3.2078]
[1742729404327,2.7117,2018.6,2018.4,0.6447]
[1742729404631,4.6373,2018.5,2018.2,3.21523587]
[1742729405133,1.3333,2018.4,2018.2,3.21523587]
[1742729405331,3.305,2018.3,2018.2,3.21523587]
[1742729405925,3.9911,2018.3,2018.2,3.21523587]
[1742729409036,3.305,2018.3,2018.2,3.88813587]
[1742729411139,4.6273,2018.4,2018.2,3.88813587]
[1742729411543,1.3999,2018.3,2018.2,3.88813587]
[1742729411842,1.3999,2018.3,2018.2,3.21523587]
[1742729412042,2.0437,2018.3,2018.2,3.21523587]
[1742729413738,2.0437,2018.3,2018.2,0.00743587]
[1742729414041,2.0437,2018.3,2017.9,44.646]
[1742729414338,5.268,2018.2,2017.9,3.846]
[1742729414545,1.3311,2018.1,2017.9,3.846]
[1742729417239,1.3311,2018.1,2018.0,0.6851]
[1742729419960,1.3311,2018.1,2018.0,1.972]
[1742729421863,3.293,2018.2,2018.0,1.972]
[1742729422059,4.6767,2018.2,2018.1,1.2869]
[1742729433477,4.6767,2018.2,2018.1,4.4947]
[1742729439269,4.6767,2018.2,2018.1,3.2078]
[1742729439467,5.49595016,2018.2,2017.8,0.00495722]
[1742729439674,3.2078,2018.0,2017.8,0.00495722]
[1742729439877,4.5675,2017.9,2017.8,0.00495722]
[1742729443682,3.257,2017.9,2017.8,0.00495722]
[1742729444180,4.6556,2017.9,2017.8,0.00495722]
[1742729444879,4.6556,2017.9,2017.8,3.21275722]
[1742729445382,3.257,2017.9,2017.8,3.21275722]
[1742729448377,1.3986,2018.1,2017.8,3.21275722]
[1742729448579,45.812,2018.2,2017.9,1.9324]
[1742729448775,47.1775,2018.2,2018.1,3.2078]
[1742729448979,50.4275,2018.2,2018.1,3.2078]
[1742729451683,4.6155,2018.2,2018.1,3.2078]
[1742729453187,1.3655,2018.2,2018.1,3.2078]
[1742729453486,4.6095,2018.2,2018.1,3.2078]
[1742729464787,3.244,2018.2,2018.1,3.2078]
[1742729470493,1.3543,2018.4,2018.1,3.2078]
[1742729470692,1.3543,2018.4,2018.2,1.9974]
[1742729470897,4.5843,2018.4,2018.3,1.3591]
[1742729473191,4.5823,2018.4,2018.3,1.3591]
[1742729473395,4.5823,2018.4,2018.1,3.2078]
[1742729473592,2.6834,2018.3,2018.2,1.3305]
[1742729476298,2.6834,2018.3,2018.1,3.2078]
[1742729476497,4.5328,2018.2,2018.1,4.6006]
[1742729482098,4.5328,2018.2,2017.9,0.6625]
[1742729482299,1.328,2018.1,2018.0,1.3912]
[1742729482904,1.328,2018.1,2017.9,0.6625]
[1742729483099,1.328,2018.1,2018.0,1.3912]
[1742729483296,4.548,2018.1,2017.8,3.21275722]
[1742729483501,1.3304,2018.0,2017.8,3.21275722]
[1742729483700,2.6159,2018.0,2017.9,1.3338]
[1742729485799,5.8359,2018.0,2017.9,1.3338]
[1742729486404,5.8359,2018.0,2017.8,3.21275722]
[1742729486707,1.3904,2017.9,2017.8,3.21275722]
[1742729487906,4.6104,2017.9,2017.8,3.21275722]
[1742729488806,4.6104,2017.9,2017.8,0.00495722]
[1742729494812,4.6104,2017.9,2017.5,3.2078]
[1742729495014,1.2877,2017.8,2017.6,1.343]
[1742729495213,3.8965,2017.7,2017.6,1.343]
[1742729495411,4.5872,2017.7,2017.6,1.343]
[1742729496311,4.5872,2017.7,2017.3,1.3041]
[1742729496499,1.2902,2017.6,2017.4,1.2759]
[1742729496705,3.221,2017.5,2017.4,1.2759]
[1742729498503,3.221,2017.5,2017.3,0.631]
[1742729498813,2.6475,2017.4,2017.3,1.917]
[1742729500206,2.6475,2017.4,2017.3,1.286]
[1742729502416,2.0139,2017.4,2017.3,1.286]
[1742729505921,1.3654,2017.4,2017.3,1.286]
[1742729507417,3.221,2017.4,2017.3,1.286]
[1742729508218,3.21523587,2017.7,2017.3,1.286]
[1742729508419,1.3769,2017.6,2017.4,1.3665]
[1742729508615,1.3769,2017.6,2017.5,1.3161]
[1742729508813,4.5979,2017.6,2017.5,1.3161]
[1742729509715,7.8057,2017.6,2017.5,1.3161]
[1742729509916,4.5847,2017.6,2017.5,1.3161]
[1742729510117,7.8057,2017.6,2017.5,1.3161]
[1742729511122,4.5979,2017.6,2017.5,1.3161]
[1742729511519,3.221,2017.6,2017.5,1.3161]
[1742729512517,1.28793587,2017.7,2017.5,1.3161]
[1742729512730,3.221,2017.6,2017.5,1.3161]
[1742729514125,1.28793587,2017.7,2017.5,1.3161]
[1742729514424,3.221,2017.6,2017.5,1.3161]
[1742729522331,1.28793587,2017.7,2017.5,1.3161]
[1742729522530,3.221,2017.6,2017.5,1.3161]
[1742729523433,1.28793587,2017.7,2017.5,1.3161]
[1742729523634,3.221,2017.6,2017.5,1.3161]
[1742729524329,0.00743587,2017.7,2017.5,1.3161]
[1742729524536,3.22843587,2017.7,2017.5,1.3161]
[1742729525234,3.221,2017.6,2017.5,1.3161]
[1742729525434,3.22843587,2017.7,2017.5,1.3161]
[1742729526428,1.2773,2017.6,2017.5,1.3161]
[1742729531234,4.4851,2017.6,2017.0,3.2078]
[1742729531538,4.5879,2017.5,2016.9,0.7008]
[1742729531736,5.9567,2017.5,2017.0,3.2078]
[1742729531937,1.3688,2017.4,2017.0,3.2078]
[1742729532141,3.221,2017.3,2017.0,3.2078]
[1742729532338,1.3737,2017.2,2017.0,3.2078]
[1742729532638,3.221,2017.1,2017.0,3.2078]
[1742729534437,3.221,2017.1,2017.0,4.5229]
[1742729535334,4.5505,2017.1,2017.0,4.5229]
[1742729538337,4.5505,2017.1,2017.0,3.2078]
[1742729541449,4.5505,2017.1,2017.0,4.5974]
[1742729541948,4.5505,2017.1,2017.0,3.2078]
[1742729553252,4.5505,2017.1,2016.9,1.3896]
[1742729553453,1.3306,2017.0,2016.9,1.3896]
[1742729564745,1.3306,2017.0,2016.8,0.6446]
[1742729565054,3.221,2016.9,2016.8,2.015]
[1742729586572,1.3306,2017.0,2016.8,2.015]
[1742729586763,1.3306,2017.0,2016.9,1.3357]
[1742729587073,4.5506,2017.0,2016.9,1.3357]
[1742729590478,3.22,2017.1,2016.9,1.3357]
[1742729590777,3.22,2017.1,2017.0,3.8778]
[1742729591274,3.22,2017.4,2017.0,6.3778]
[1742729591478,4.4824,2017.4,2017.1,2.0372]
[1742729591680,1.2624,2017.3,2017.2,1.3669]
[1742729592980,3.22,2017.4,2017.2,1.3669]
[1742729593273,4.5443,2017.4,2017.3,0.67]
[1742729593473,1.3243,2017.4,2017.3,0.67]
[1742729593973,3.22,2017.5,2017.3,0.67]
[1742729594173,3.22,2017.5,2017.4,1.3756]
[1742729594481,3.22,2017.5,2017.4,2.0696]
[1742729595283,4.5443,2017.5,2017.3,0.67]
[1742729595470,1.9994,2017.4,2017.3,0.67]
[1742729596068,1.3243,2017.4,2017.3,0.67]
[1742729596579,6.4268,2017.6,2017.3,0.67]
[1742729596767,1.3671,2017.5,2017.4,1.32]
[1742729596973,1.3671,2017.5,2017.4,1.9641]
[1742729598383,4.5861,2017.5,2017.4,1.9641]
[1742729599380,3.219,2017.5,2017.4,1.9641]
[1742729601575,1.3163,2017.6,2017.4,1.9641]
[1742729601885,1.3163,2017.6,2017.5,1.3895]
[1742729602270,0.00743587,2017.7,2017.5,1.3895]
[1742729602470,0.00743587,2017.7,2017.6,3.8882]
[1742729602471,4.59153587,2017.7,2017.6,3.8882]
[1742729602877,4.59153587,2017.7,2017.6,44.6882]
[1742729604489,1.37253587,2017.7,2017.6,44.6882]
[1742729605177,1.37253587,2017.7,2017.6,3.8882]
[1742729607683,4.59053587,2017.7,2017.6,3.2078]
[1742729607888,4.59053587,2017.7,2017.4,0.6441]
[1742729608092,1.3585,2017.6,2017.4,0.6441]
[1742729608387,1.3585,2017.6,2017.4,2.0133]
[1742729609093,3.218,2017.5,2017.3,3.2078]
[1742729609391,2.0001,2017.4,2016.9,3.2078]
[1742729609592,4.5451,2017.3,2016.9,3.2078]
[1742729609782,1.3271,2017.2,2017.0,1.3692]
[1742729609985,1.9683,2017.2,2017.0,1.3692]
[1742729610384,1.3271,2017.1,2017.0,2.0498]
[1742729610989,1.3271,2017.1,2016.9,44.0078]
[1742729611190,0.673,2017.0,2016.9,44.0078]
[1742729611492,3.891,2017.0,2016.9,44.0078]
[1742729611691,3.891,2017.0,2016.9,3.2078]
[1742729621401,3.891,2017.0,2016.8,4.5479]
[1742729621698,1.3729,2016.9,2016.8,4.5479]
[1742729625503,1.3729,2016.9,2016.8,1.3401]
[1742729626002,1.3729,2016.9,2016.7,0.6639]
[1742729626306,3.218,2016.8,2016.7,1.9522]
[1742729626799,4.5715,2016.8,2016.7,1.9522]
[1742729627703,4.5715,2016.8,2016.5,44.0078]
[1742729627898,1.985,2016.7,2016.5,44.0078]
[1742729628094,1.3535,2016.6,2016.5,45.3059]
[1742729628499,4.5715,2016.6,2016.5,45.3059]
[1742729629096,4.5715,2016.6,2016.5,4.5059]
[1742729632812,4.5715,2016.6,2016.5,3.2078]
[1742729633012,5.2536,2016.6,2016.5,3.2078]
[1742729633604,5.2536,2016.6,2016.5,4.542]
[1742729633809,4.5715,2016.6,2016.5,4.542]
[1742729642317,1.3535,2016.6,2016.5,4.542]
[1742729642517,4.5715,2016.6,2016.5,4.542]
[1742729647412,3.2078,2017.0,2016.5,4.542]
[1742729647611,3.2078,2017.0,2016.6,2.0281]
[1742729647612,4.5632,2016.9,2016.6,2.0281]
[1742729647822,1.3452,2016.8,2016.7,1.3312]
[1742729648021,1.3452,2016.8,2016.7,2.0109]
[1742729652828,1.3452,2016.8,2016.6,0.6969]
[1742729653029,3.8575,2016.7,2016.6,1.3557]
[1742729653433,5.1423,2016.7,2016.5,3.2078]
[1742729653732,1.2848,2016.6,2016.5,3.2078]
[1742729654933,1.2848,2016.6,2016.5,4.4767]
[1742729657535,3.218,2016.7,2016.5,4.4767]
[1742729657734,3.218,2016.7,2016.6,1.2637]
[1742729657927,3.218,2016.7,2016.6,1.9592]
[1742729661336,3.218,2016.7,2016.5,3.2078]
[1742729661535,1.9816,2016.6,2016.5,3.2078]
[1742729661723,1.9816,2016.6,2016.5,4.538]
[1742729663732,1.2916,2016.6,2016.5,5.1894]
[1742729665031,3.218,2016.7,2016.5,5.1894]
[1742729665338,3.218,2016.7,2016.6,1.39]
[1742729669344,4.5863,2016.8,2016.6,1.39]
[1742729669841,3.217,2016.9,2016.7,0.6973]
[1742729670043,3.217,2016.9,2016.8,2.0664]
[1742729670743,4.5341,2017.0,2016.8,2.0664]
[1742729670941,4.5341,2017.0,2016.9,1.3984]
[1742729671144,3.217,2017.0,2016.9,1.3984]
[1742729671842,3.217,2017.0,2016.7,0.6973]
[1742729672035,3.217,2017.0,2016.8,1.3984]
[1742729672938,3.217,2017.0,2016.8,4.6062]
[1742729673141,3.217,2017.0,2016.9,1.3022]
[1742729673539,3.217,2017.0,2016.9,1.9514]
[1742729673735,45.834,2017.2,2016.9,1.9514]
[1742729673943,3.217,2017.1,2017.0,1.3022]
[1742729674142,3.217,2017.1,2016.5,3.2078]
[1742729674446,3.217,2017.1,2016.6,2.5836]
[1742729674750,3.217,2017.1,2016.7,1.3022]
[1742729675442,3.217,2017.1,2016.8,3.2078]
[1742729675635,3.217,2017.1,2016.9,2.0227]
[1742729675837,3.217,2017.1,2017.0,1.3712]
[1742729677341,3.217,2017.2,2017.0,1.3712]
[1742729680045,3.9096,2017.4,2017.0,1.3712]
[1742729681441,3.9096,2017.4,2017.1,3.2078]
[1742729681645,3.9096,2017.4,2017.2,1.8964]
[1742729681846,3.9096,2017.4,2017.3,1.2635]
[1742729682049,3.898,2017.6,2017.3,1.2635]
[1742729682352,3.216,2017.5,2017.3,1.2635]
[1742729682555,7.1174,2017.6,2017.3,1.2635]
[1742729684854,7.7747,2017.6,2017.3,1.2635]
[1742729686353,7.7747,2017.6,2017.2,1.2783]
[1742729686555,7.7747,2017.6,2017.2,2.5426]
[1742729687154,7.7747,2017.6,2017.1,3.2078]
[1742729687355,7.7747,2017.6,2017.1,4.4721]
[1742729687556,7.7747,2017.6,2017.1,3.2078]
[1742729687750,7.7747,2017.6,2016.8,3.2078]
[1742729687952,7.7747,2017.6,2016.9,2.6648]
[1742729688152,7.7747,2017.6,2017.0,1.3621]
[1742729690057,7.7747,2017.6,2017.1,3.2078]
[1742729690258,1.3288,2017.5,2017.2,1.3621]
[1742729690556,3.216,2017.4,2017.2,2.0179]
[1742729690751,3.216,2017.4,2017.3,1.3976]
[1742729691766,7.1174,2017.6,2017.3,1.3976]
[1742729694567,7.7565,2017.6,2017.3,1.3976]
[1742729697971,4.5405,2017.6,2017.3,1.3976]
[1742729699371,3.9014,2017.6,2017.3,1.3976]
[1742729699974,0.6936,2017.6,2017.3,1.3976]
[1742729700176,0.6936,2017.6,2017.4,3.2078]
[1742729700472,0.6936,2017.6,2017.5,1.3244]
[1742729700673,0.6936,2017.6,2017.5,2.0037]
[1742729701874,0.6936,2017.6,2017.4,3.2078]
[1742729702075,0.6832,2017.5,2017.4,3.2078]
[1742729703173,0.6936,2017.6,2017.4,3.2078]
[1742729703372,0.6936,2017.6,2017.4,3.9067]
[1742729704086,0.6936,2017.6,2017.4,3.2078]
[1742729704378,0.6839,2017.5,2017.4,3.2078]
[1742729704584,0.6936,2017.6,2017.5,1.2613]
[1742729710181,1.9598,2017.6,2017.5,1.2613]
[1742729711487,1.9598,2017.6,2017.4,3.2078]
[1742729711688,1.2662,2017.5,2017.4,3.2078]
[1742729715392,0.00743587,2017.7,2017.4,3.2078]
[1742729715586,1.3879,2017.6,2017.5,2.6909]
[1742729716900,0.00743587,2017.7,2017.5,2.6909]
[1742729717194,1.39533587,2017.7,2017.6,1.3253]
[1742729717594,1.39533587,2017.7,2017.6,42.1253]
[1742729723398,0.00743587,2017.7,2017.6,42.1253]
[1742729727494,0.00743587,2017.7,2017.6,45.3393]
[1742729730996,0.00743587,2017.7,2017.6,1.3253]
[1742729731399,1.36553587,2017.7,2017.6,42.1253]
[1742729732404,1.36553587,2017.7,2017.6,40.8]
[1742729732907,1.36553587,2017.7,2017.5,2.6341]
[1742729733405,1.36553587,2017.7,2017.6,40.8]
[1742729734608,1.36553587,2017.7,2017.5,2.6341]
[1742729734806,1.36553587,2017.7,2017.4,3.2078]
[1742729735309,1.36553587,2017.7,2017.5,40.8]
[1742729735895,3.213,2017.6,2017.5,40.8]
[1742729736207,3.213,2017.6,2017.4,3.2078]
[1742729736410,2.6036,2017.5,2017.4,3.2078]
[1742729738509,2.6036,2017.5,2017.2,1.2936]
[1742729738708,1.2885,2017.4,2017.1,44.658]
[1742729739008,1.2885,2017.4,2017.0,0.6797]
[1742729739009,4.5015,2017.4,2016.7,6.4208]
[1742729739202,4.5015,2017.4,2017.0,1.2936]
[1742729739401,4.5015,2017.4,2016.8,1.3282]
[1742729739402,1.3352,2017.3,2016.8,1.3282]
[1742729739706,3.87,2017.2,2016.9,42.1071]
[1742729739912,1.3352,2017.1,2016.9,1.3071]
[1742729740106,1.3352,2017.1,2016.8,0.6502]
[1742729740406,3.213,2017.0,2016.8,1.9573]
[1742729740612,1.3352,2016.9,2016.7,3.2078]
[1742729740904,1.3352,2016.9,2016.7,5.2044]
[1742729741102,1.3352,2016.9,2016.6,0.6452]
[1742729741304,3.856,2016.8,2016.4,3.2078]
[1742729741504,1.3352,2016.7,2016.4,3.2078]
[1742729741706,6.4208,2016.6,2016.3,1.3071]
[1742729741907,1.3352,2016.5,2016.3,1.3071]
[1742729742203,0.643,2016.4,2016.2,1.3347]
[1742729742517,1.3224,2016.3,2016.2,2.6928]
[1742729743106,1.3224,2016.3,2016.2,43.4928]
[1742729748410,3.214,2016.4,2016.2,43.4928]
[1742729748717,4.5529,2016.4,2016.3,1.3278]
[1742729748920,3.214,2016.4,2016.3,1.3278]
[1742729749418,3.214,2016.4,2016.2,0.6895]
[1742729749811,3.214,2016.4,2016.3,1.3278]
[1742729750516,3.214,2016.4,2016.2,41.4895]
[1742729750719,3.214,2016.4,2016.2,40.8]
[1742729751717,3.214,2016.4,2016.1,1.3278]
[1742729752115,3.214,2016.4,2016.1,42.1278]
[1742729752510,3.214,2016.4,2016.2,1.2933]
[1742729753911,3.214,2016.4,2016.1,40.8]
[1742729754220,3.214,2016.4,2016.0,0.6749]
[1742729754421,3.214,2016.4,2016.0,1.9682]
[1742729754720,3.214,2016.4,2016.0,42.7682]
[1742729755123,3.214,2016.4,2016.1,1.36]
[1742729755624,3.214,2016.4,2016.0,41.4749]
[1742729755923,3.214,2016.4,2016.0,42.8349]
[1742729756319,3.214,2016.4,2016.0,42.16]
[1742729758825,3.214,2016.4,2016.0,1.36]
[1742729759025,3.214,2016.4,2016.1,1.3987]
[1742729760218,1.3428,2016.3,2016.1,1.3987]
[1742729760419,3.215,2016.2,2016.1,1.3987]
[1742729762024,1.3428,2016.3,2016.1,1.3987]
[1742729762225,3.8782,2016.6,2016.2,0.6377]
[1742729762528,3.8782,2016.6,2016.3,1.3009]
[1742729762529,1.3725,2016.4,2016.3,1.3009]
[1742729765231,1.3725,2016.4,2016.2,1.3348]
[1742729765424,3.8604,2016.3,2016.2,2.6281]
[1742729765822,3.8604,2016.3,2016.1,3.2078]
[1742729766127,3.8604,2016.3,2016.0,1.9735]
[1742729766128,1.2994,2016.2,2016.0,1.9735]
[1742729766325,1.2994,2016.2,2016.1,1.2933]
[1742729766530,4.5144,2016.2,2016.1,1.2933]
[1742729769233,4.5144,2016.2,2016.0,0.6802]
[1742729769530,1.3821,2016.1,2015.9,2.0713]
[1742729769726,3.8667,2016.0,2015.9,2.0713]
[1742729773128,3.215,2016.0,2015.9,2.0713]
[1742729775526,4.5971,2016.1,2015.9,2.0713]
[1742729775732,4.5971,2016.1,2016.0,1.3449]
[1742729775931,4.5971,2016.1,2016.0,2.0325]
[1742729781334,4.5971,2016.1,2015.8,3.2078]
[1742729781641,1.2952,2016.0,2015.8,3.2078]
[1742729781945,3.215,2015.9,2015.8,3.2078]
[1742729783738,4.5806,2015.9,2015.8,3.2078]
[1742729784135,3.8943,2015.9,2015.8,3.2078]
[1742729785045,3.215,2015.9,2015.8,3.2078]
[1742729787145,3.215,2015.9,2015.7,1.3511]
[1742729787345,1.3317,2015.8,2015.7,1.3511]
[1742729790146,1.9814,2015.8,2015.7,1.3511]
[1742729792051,1.9814,2015.8,2015.6,1.3236]
[1742729792253,4.5615,2015.7,2015.6,2.6199]
[1742729792643,4.5615,2015.7,2015.6,1.9464]
[1742729795954,4.5615,2015.7,2015.6,1.2963]
[1742729796351,7.7693,2015.7,2015.2,41.2045109]
[1742729796546,1.9699,2015.6,2015.3,1.3022]
[1742729796751,4.5349,2015.5,2015.3,1.3022]
[1742729796951,1.3199,2015.4,2015.3,1.3022]
[1742729798751,1.3199,2015.4,2015.1,3.8542]
[1742729799055,3.8978,2015.3,2015.1,3.8542]
[1742729799258,3.215,2015.3,2015.2,1.2748]
[1742729800650,3.215,2015.3,2015.1,3.8542]
[1742729800851,3.215,2015.3,2015.1,5.1959]
[1742729801050,0.6667,2015.2,2015.1,4.5495]
[1742729802656,0.6667,2015.2,2015.1,5.2075]
[1742729805162,3.215,2015.2,2015.1,5.2075]
[1742729806847,45.863,2015.6,2015.1,5.2075]
[1742729807050,3.215,2015.5,2015.2,1.3436]
[1742729807448,3.215,2015.5,2015.3,0.6949]
[1742729807655,3.215,2015.5,2015.4,1.3436]
[1742729808256,3.215,2015.5,2015.3,0.6949]
[1742729808656,3.215,2015.5,2015.2,1.3436]
[1742729808862,3.2078,2015.4,2015.2,2.0385]
[1742729809156,3.8732,2015.3,2015.2,2.0385]
[1742729809363,3.8732,2015.3,2014.8,3.2078]
[1742729809557,4.5655,2015.3,2014.8,5.8135]
[1742729809757,4.5655,2015.3,2014.9,1.2916]
[1742729810360,1.2635,2015.2,2014.9,1.2916]
[1742729810550,3.215,2015.1,2014.9,1.2916]
[1742729810755,1.2635,2015.0,2014.9,1.2916]
[1742729812551,1.2635,2015.0,2014.8,3.8547]
[1742729812760,3.215,2014.9,2014.6,0.6383]
[1742729812963,1.2964,2014.8,2014.6,1.9045]
[1742729813165,1.2964,2014.8,2014.7,1.2662]
[1742729813463,4.5114,2014.8,2014.7,1.2662]
[1742729814457,4.5114,2014.8,2014.7,1.9413]
[1742729815760,7.7192,2014.8,2014.6,0.6383]
[1742729816068,1.2776,2014.7,2014.6,1.9907]
[1742729816259,1.941,2014.7,2014.6,1.9907]
[1742729816460,4.4936,2014.7,2014.6,1.9907]
[1742729817360,4.4936,2014.7,2014.6,0.6383]
[1742729817858,4.4936,2014.7,2014.6,1.9907]
[1742729818167,4.4936,2014.7,2014.0,3.2078]
[1742729818365,3.2078,2014.5,2014.1,2.7075]
[1742729818561,4.4936,2014.4,2014.2,1.3524]
[1742729818759,1.3444,2014.3,2014.2,42.1524]
[1742729819153,3.216,2014.4,2014.2,42.1524]
[1742729819365,4.5604,2014.4,2014.3,1.3463]
[1742729820853,1.3444,2014.4,2014.3,1.3463]
[1742729821057,4.5604,2014.4,2014.3,1.3463]
[1742729821971,4.5604,2014.4,2013.6,3.2078]
[1742729822268,1.3843,2014.3,2014.1,1.2802]
[1742729822455,1.3843,2014.3,2014.2,0.6433]
[1742729822661,4.6003,2014.3,2014.2,1.334]
[1742729822861,4.6003,2014.3,2014.2,2.6142]
[1742729825178,4.6003,2014.3,2014.1,40.8]
[1742729825364,4.531,2014.2,2014.0,1.2819]
[1742729825674,5.1894,2014.1,2013.8,1.3183]
[1742729825969,1.3232,2014.0,2013.8,42.1183]
[1742729826169,3.216,2013.9,2013.8,42.1183]
[1742729828870,3.216,2013.9,2013.8,41.4335]
[1742729830272,3.216,2013.9,2013.8,40.8]
[1742729830575,3.216,2013.9,2013.8,41.4822]
[1742729834481,6.4238,2013.9,2013.6,0.6574]
[1742729834673,2.0532,2013.8,2013.6,0.6574]
[1742729834874,4.5749,2013.7,2013.6,41.4574]
[1742729835066,5.2307,2013.7,2013.6,41.4574]
[1742729835571,5.2307,2013.7,2013.4,1.3929]
[1742729835777,1.3579,2013.6,2013.4,1.3929]
[1742729835966,3.217,2013.5,2013.4,42.1929]
[1742729836279,3.2078,2013.9,2013.4,42.1929]
[1742729836475,3.2078,2013.9,2013.5,1.3929]
[1742729836682,4.5749,2013.8,2013.5,1.3929]
[1742729836977,1.3579,2013.7,2013.6,0.641]
[1742729837174,1.3579,2013.7,2013.6,2.0353]
[1742729839171,1.3579,2013.7,2013.5,3.2078]
[1742729839368,1.3579,2013.7,2013.6,2.0937]
[1742729839581,4.5749,2013.7,2013.6,2.0937]
[1742729841378,3.2078,2013.9,2013.6,2.0937]
[1742729841586,3.217,2013.8,2013.7,1.95]
[1742729842176,6.4248,2013.9,2013.7,1.95]
[1742729842381,6.4248,2013.9,2013.8,1.2643]
[1742729842584,3.217,2014.0,2013.8,4.4721]
[1742729843081,3.217,2014.0,2013.9,1.9416]
[1742729849691,3.8864,2014.0,2013.8,3.2078]
[1742729849888,0.6719,2013.9,2013.7,0.6857]
[1742729850086,0.6719,2013.9,2013.6,1.393]
[1742729850087,3.217,2013.8,2013.6,1.393]
[1742729860396,1.2632,2013.7,2013.6,1.393]
[1742729871411,3.217,2013.9,2013.6,1.393]
[1742729871597,1.4014,2013.9,2013.6,1.393]
[1742729871894,1.4014,2013.8,2013.6,1.393]
[1742729873508,3.8864,2014.0,2013.6,1.393]
[1742729873804,1.3985,2013.9,2013.8,3.2078]
[1742729879806,1.3985,2013.9,2013.6,1.393]
[1742729883212,3.8519,2013.8,2013.5,3.2078]
[1742729883415,1.9803,2013.7,2013.5,3.2078]
[1742729883612,1.2803,2013.6,2013.5,3.2078]
[1742729883807,1.2803,2013.6,2013.4,40.8]
[1742729884007,1.2803,2013.6,2013.5,1.309]
[1742729884408,1.2803,2013.6,2013.5,1.9766]
[1742729885306,4.4973,2013.6,2013.5,1.9766]
[1742729887415,4.4973,2013.6,2013.5,5.1844]
[1742729887613,4.4973,2013.6,2013.5,5.8664]
[1742729887810,1.2803,2013.6,2013.5,5.8664]
[1742729888211,3.217,2013.8,2013.5,5.8664]
[1742729888401,3.217,2013.8,2013.6,1.324]
[1742729888607,1.9814,2013.9,2013.6,1.324]
[1742729888808,1.3168,2013.8,2013.6,1.324]
[1742729889008,3.217,2013.9,2013.6,1.324]
[1742729889208,6.4248,2014.1,2013.8,3.2078]
[1742729889412,1.3168,2014.0,2013.9,2.7053]
[1742729889709,1.3168,2014.0,2013.9,1.3296]
[1742729891212,1.3168,2014.0,2013.8,3.2078]
[1742729891412,1.9961,2014.0,2013.8,3.2078]
[1742729891815,1.2655,2013.9,2013.8,3.2078]
[1742729892622,6.4248,2014.1,2013.8,3.2078]
[1742729892805,3.2078,2014.1,2013.8,3.2078]
[1742729893409,3.2078,2014.1,2013.9,3.216]
[1742729893618,3.2078,2014.1,2014.0,0.6582]
[1742729893915,3.2078,2014.9,2014.0,0.6582]
[1742729894120,3.216,2014.8,2014.4,3.2078]
[1742729894416,0.6872,2014.7,2014.4,3.2078]
[1742729894618,2.5958,2014.7,2014.4,3.2078]